[Event "Late-Titled-Tuesday-Blitz-April-16-2024"]
[Site "Chess.com"]
[Date "2024.04.16"]
[Round "5"]
[White "masterofpuppets2"]
[Black "LuckIsMySkill"]
[Result "1/2-1/2"]
[WhiteElo "2493"]
[BlackElo "2673"]
[TimeControl "180+1"]
[EndTime "14:53:37 PDT"]
[Termination "Game drawn by stalemate"]

1. d4 {[%clk 0:03:00.9]} 1... Nf6 {[%clk 0:02:58.8]} 2. c4 {[%clk 0:03:01.3]}
2... e6 {[%clk 0:02:58.9]} 3. Nc3 {[%clk 0:03:01.2]} 3... Bb4 {[%clk 0:02:58.4]}
4. Qc2 {[%clk 0:03:01.8]} 4... b6 {[%clk 0:02:57.5]} 5. e4 {[%clk 0:03:01.5]}
5... Bb7 {[%clk 0:02:57.6]} 6. Bd3 {[%clk 0:03:01.7]} 6... Bxc3+ {[%clk
0:02:49.1]} 7. bxc3 {[%clk 0:03:01.5]} 7... d6 {[%clk 0:02:50]} 8. f4 {[%clk
0:03:01.1]} 8... Nbd7 {[%clk 0:02:50.2]} 9. Nf3 {[%clk 0:03:01.1]} 9... e5
{[%clk 0:02:49.3]} 10. O-O {[%clk 0:02:59.7]} 10... O-O {[%clk 0:02:48.5]} 11.
fxe5 {[%clk 0:02:56.9]} 11... dxe5 {[%clk 0:02:49.4]} 12. Bg5 {[%clk 0:02:56.7]}
12... h6 {[%clk 0:02:47]} 13. Bxf6 {[%clk 0:02:53.9]} 13... Nxf6 {[%clk
0:02:40.9]} 14. Nxe5 {[%clk 0:02:52.9]} 14... Re8 {[%clk 0:02:40.6]} 15. Qe2
{[%clk 0:02:38.6]} 15... c5 {[%clk 0:02:35.1]} 16. Qe3 {[%clk 0:02:13.9]} 16...
Rxe5 {[%clk 0:02:20.1]} 17. dxe5 {[%clk 0:02:12.8]} 17... Ng4 {[%clk 0:02:20.8]}
18. Qg3 {[%clk 0:02:10.2]} 18... Qg5 {[%clk 0:02:08.9]} 19. Rf5 {[%clk
0:01:45.9]} 19... Qe3+ {[%clk 0:01:51.6]} 20. Qxe3 {[%clk 0:01:37.6]} 20... Nxe3
{[%clk 0:01:52.5]} 21. Rf4 {[%clk 0:01:17]} 21... Rd8 {[%clk 0:01:51.7]} 22. Be2
{[%clk 0:01:07.9]} 22... Rd2 {[%clk 0:01:45.8]} 23. Rf2 {[%clk 0:01:06.6]} 23...
Bxe4 {[%clk 0:01:31.5]} 24. Bf3 {[%clk 0:01:05.7]} 24... Rxf2 {[%clk 0:01:27.6]}
25. Kxf2 {[%clk 0:01:06.6]} 25... Bxf3 {[%clk 0:01:27.8]} 26. Kxe3 {[%clk
0:01:01.9]} 26... Bxg2 {[%clk 0:01:27.9]} 27. a4 {[%clk 0:01:01.4]} 27... g5
{[%clk 0:01:24.5]} 28. a5 {[%clk 0:01:00.5]} 28... Kg7 {[%clk 0:01:21.5]} 29.
axb6 {[%clk 0:00:57.9]} 29... axb6 {[%clk 0:01:22.4]} 30. Rb1 {[%clk 0:00:54.1]}
30... h5 {[%clk 0:01:22.4]} 31. Rg1 {[%clk 0:00:46.6]} 31... Bh3 {[%clk
0:01:17.4]} 32. Rxg5+ {[%clk 0:00:44.6]} 32... Kh6 {[%clk 0:01:18.3]} 33. Rg1
{[%clk 0:00:41.5]} 33... Be6 {[%clk 0:01:19.2]} 34. Rb1 {[%clk 0:00:41]} 34...
Kg5 {[%clk 0:01:14]} 35. Rxb6 {[%clk 0:00:40.1]} 35... Kg4 {[%clk 0:01:10.3]}
36. Kf2 {[%clk 0:00:31.8]} 36... Kf4 {[%clk 0:01:02.5]} 37. Rc6 {[%clk
0:00:30.8]} 37... Bxc4 {[%clk 0:00:58.4]} 38. Rxc5 {[%clk 0:00:30.8]} 38... Be6
{[%clk 0:00:59.3]} 39. Ra5 {[%clk 0:00:24.8]} 39... h4 {[%clk 0:00:58.6]} 40. c4
{[%clk 0:00:25]} 40... Ke4 {[%clk 0:00:58.1]} 41. c5 {[%clk 0:00:21.2]} 41...
Kxe5 {[%clk 0:00:57.6]} 42. Ra1 {[%clk 0:00:12.9]} 42... Kd5 {[%clk 0:00:54.4]}
43. Rc1 {[%clk 0:00:13.8]} 43... Kc6 {[%clk 0:00:53.6]} 44. Ke3 {[%clk 0:00:14]}
44... h3 {[%clk 0:00:52.5]} 45. Kf4 {[%clk 0:00:14.9]} 45... Bd5 {[%clk
0:00:51.3]} 46. Ke5 {[%clk 0:00:15.2]} 46... Be6 {[%clk 0:00:52]} 47. Kd4 {[%clk
0:00:16.1]} 47... Bd5 {[%clk 0:00:48.8]} 48. Rc3 {[%clk 0:00:17]} 48... Be6
{[%clk 0:00:48.9]} 49. Ra3 {[%clk 0:00:17.1]} 49... Kc7 {[%clk 0:00:48]} 50.
Ra7+ {[%clk 0:00:16.9]} 50... Kc6 {[%clk 0:00:48.2]} 51. Ra6+ {[%clk 0:00:17.4]}
51... Kc7 {[%clk 0:00:48.5]} 52. Ra1 {[%clk 0:00:08.3]} 52... Kc6 {[%clk
0:00:47.7]} 53. Re1 {[%clk 0:00:07.3]} 53... Kc7 {[%clk 0:00:47.8]} 54. Rb1
{[%clk 0:00:05.8]} 54... Kc6 {[%clk 0:00:47.6]} 55. Rb6+ {[%clk 0:00:06.7]}
55... Kc7 {[%clk 0:00:47.9]} 56. Ke5 {[%clk 0:00:07.5]} 56... Bc8 {[%clk
0:00:44.7]} 57. Rh6 {[%clk 0:00:06.1]} 57... Be6 {[%clk 0:00:44.1]} 58. Rxe6
{[%clk 0:00:03.1]} 58... fxe6 {[%clk 0:00:45]} 59. Kxe6 {[%clk 0:00:04]} 59...
Kc6 {[%clk 0:00:45.5]} 60. Kf5 {[%clk 0:00:04.7]} 60... Kxc5 {[%clk 0:00:46.2]}
61. Kg4 {[%clk 0:00:05.6]} 61... Kd6 {[%clk 0:00:47.1]} 62. Kxh3 {[%clk
0:00:06.5]} 62... Ke7 {[%clk 0:00:48]} 63. Kg4 {[%clk 0:00:07.4]} 63... Kf7
{[%clk 0:00:48.9]} 64. Kg5 {[%clk 0:00:08.3]} 64... Kg7 {[%clk 0:00:49.8]} 65.
h4 {[%clk 0:00:09]} 65... Kh8 {[%clk 0:00:50.7]} 66. h5 {[%clk 0:00:09.9]} 66...
Kg8 {[%clk 0:00:51]} 67. h6 {[%clk 0:00:10.8]} 67... Kh8 {[%clk 0:00:51.9]} 68.
Kh5 {[%clk 0:00:11.7]} 68... Kg8 {[%clk 0:00:52.6]} 69. Kg6 {[%clk 0:00:12.6]}
69... Kh8 {[%clk 0:00:53.5]} 70. h7 {[%clk 0:00:13.4]} 1/2-1/2

[Event "Late-Titled-Tuesday-Blitz-April-16-2024"]
[Site "Chess.com"]
[Date "2024.04.16"]
[Round "5"]
[White "jinxy2009"]
[Black "youngdinousaur"]
[Result "0-1"]
[WhiteElo "2310"]
[BlackElo "2234"]
[TimeControl "180+1"]
[EndTime "14:53:37 PDT"]
[Termination "youngdinousaur won by resignation"]

1. e4 {[%clk 0:03:00.9]} 1... c5 {[%clk 0:02:55.6]} 2. Nf3 {[%clk 0:03:00.7]}
2... e6 {[%clk 0:02:56.1]} 3. d4 {[%clk 0:03:00.7]} 3... cxd4 {[%clk 0:02:57]}
4. Nxd4 {[%clk 0:03:01.5]} 4... Nf6 {[%clk 0:02:57.5]} 5. Nc3 {[%clk 0:03:02]}
5... Nc6 {[%clk 0:02:58.1]} 6. Ndb5 {[%clk 0:03:02.1]} 6... d6 {[%clk
0:02:58.2]} 7. Bf4 {[%clk 0:03:02.2]} 7... e5 {[%clk 0:02:59.1]} 8. Bg5 {[%clk
0:03:02.7]} 8... a6 {[%clk 0:02:59.2]} 9. Na3 {[%clk 0:03:01.8]} 9... b5 {[%clk
0:02:59.7]} 10. Nd5 {[%clk 0:03:02.3]} 10... Be7 {[%clk 0:02:59.6]} 11. Bxf6
{[%clk 0:03:02.9]} 11... Bxf6 {[%clk 0:03:00.3]} 12. c3 {[%clk 0:03:03.4]} 12...
Bg5 {[%clk 0:03:00.2]} 13. Nc2 {[%clk 0:03:02.9]} 13... O-O {[%clk 0:03:00]} 14.
a4 {[%clk 0:03:03.2]} 14... bxa4 {[%clk 0:02:59]} 15. Rxa4 {[%clk 0:03:04.1]}
15... a5 {[%clk 0:02:59.6]} 16. Bc4 {[%clk 0:03:04.1]} 16... Rb8 {[%clk
0:02:59.1]} 17. b3 {[%clk 0:03:04.6]} 17... Be6 {[%clk 0:02:51.9]} 18. O-O
{[%clk 0:02:55.8]} 18... g6 {[%clk 0:02:47.9]} 19. g3 {[%clk 0:02:38.4]} 19...
Ne7 {[%clk 0:02:44.2]} 20. Nce3 {[%clk 0:02:35]} 20... Bxe3 {[%clk 0:02:41.2]}
21. Nxe3 {[%clk 0:02:34.9]} 21... Bxc4 {[%clk 0:02:33.3]} 22. Nxc4 {[%clk
0:02:35.8]} 22... d5 {[%clk 0:02:29.3]} 23. Nxe5 {[%clk 0:02:31.3]} 23... Qc7
{[%clk 0:02:03.5]} 24. Qd4 {[%clk 0:02:06]} 24... dxe4 {[%clk 0:01:49.9]} 25. b4
{[%clk 0:01:24.3]} 25... axb4 {[%clk 0:01:48.1]} 26. cxb4 {[%clk 0:01:25.2]}
26... Nc6 {[%clk 0:01:43]} 27. Nxc6 {[%clk 0:01:20.8]} 27... Qxc6 {[%clk
0:01:43.9]} 28. Ra7 {[%clk 0:01:21]} 28... Rfd8 {[%clk 0:01:33.3]} 29. Qb2
{[%clk 0:01:14]} 29... Qb6 {[%clk 0:01:27.8]} 30. Qa2 {[%clk 0:01:10.8]} 30...
Qf6 {[%clk 0:01:22.8]} 31. Qc4 {[%clk 0:01:05.9]} 31... Qf3 {[%clk 0:01:19.3]}
32. b5 {[%clk 0:00:53.7]} 32... Rd2 {[%clk 0:01:12.1]} 33. Qc7 {[%clk
0:00:19.4]} 33... Rf8 {[%clk 0:01:04.9]} 34. Qf4 {[%clk 0:00:16.7]} 34... Qxf4
{[%clk 0:00:50.2]} 35. gxf4 {[%clk 0:00:17.1]} 35... Rb2 {[%clk 0:00:50.1]} 36.
Rb7 {[%clk 0:00:15.9]} 36... f5 {[%clk 0:00:43.7]} 37. Rd1 {[%clk 0:00:15.5]}
37... Rf7 {[%clk 0:00:42.2]} 38. Rd8+ {[%clk 0:00:14.3]} 38... Kg7 {[%clk
0:00:41.8]} 39. Rbb8 {[%clk 0:00:14.6]} 39... Rc7 {[%clk 0:00:36.2]} 40. b6
{[%clk 0:00:15]} 40... Rcc2 {[%clk 0:00:31.6]} 41. Rd7+ {[%clk 0:00:12.9]} 41...
Kh6 {[%clk 0:00:31.2]} 42. Rbb7 {[%clk 0:00:13.1]} 42... Kh5 {[%clk 0:00:30.2]}
43. h3 {[%clk 0:00:11.4]} 43... h6 {[%clk 0:00:22.3]} 44. Rbc7 {[%clk
0:00:03.8]} 44... Rxf2 {[%clk 0:00:19.4]} 45. b7 {[%clk 0:00:04.3]} 45... Rfe2
{[%clk 0:00:14.9]} 46. Rc8 {[%clk 0:00:03.8]} 0-1

[Event "Late-Titled-Tuesday-Blitz-April-16-2024"]
[Site "Chess.com"]
[Date "2024.04.16"]
[Round "5"]
[White "laskakid"]
[Black "PNEPaul"]
[Result "1-0"]
[WhiteElo "2362"]
[BlackElo "1861"]
[TimeControl "180+1"]
[EndTime "14:53:38 PDT"]
[Termination "laskakid won on time"]

1. e4 {[%clk 0:03:00.9]} 1... e5 {[%clk 0:02:27.4]} 2. Nf3 {[%clk 0:03:00.5]}
2... Nc6 {[%clk 0:02:27.3]} 3. d3 {[%clk 0:03:00.4]} 3... Be7 {[%clk 0:02:26]}
4. g3 {[%clk 0:02:59.2]} 4... Nf6 {[%clk 0:02:25.7]} 5. Bg2 {[%clk 0:02:59.2]}
5... O-O {[%clk 0:02:25.5]} 6. O-O {[%clk 0:02:59.2]} 6... h6 {[%clk 0:02:24.5]}
7. c3 {[%clk 0:02:55.4]} 7... d6 {[%clk 0:02:24.1]} 8. b4 {[%clk 0:02:52.7]}
8... a6 {[%clk 0:02:22.9]} 9. Nbd2 {[%clk 0:02:46.3]} 9... Be6 {[%clk
0:02:22.5]} 10. Re1 {[%clk 0:02:39.7]} 10... Qd7 {[%clk 0:02:21.5]} 11. Bb2
{[%clk 0:02:38.9]} 11... Bh3 {[%clk 0:02:20.8]} 12. Bh1 {[%clk 0:02:34.2]} 12...
Rad8 {[%clk 0:02:19.2]} 13. a4 {[%clk 0:02:26]} 13... Ng4 {[%clk 0:02:07.9]} 14.
Nc4 {[%clk 0:02:14.5]} 14... f5 {[%clk 0:02:06]} 15. exf5 {[%clk 0:01:17.6]}
15... Rxf5 {[%clk 0:02:03.7]} 16. Ne3 {[%clk 0:01:17]} 16... Nxe3 {[%clk
0:01:58.1]} 17. Rxe3 {[%clk 0:01:16.6]} 17... Bg4 {[%clk 0:01:55.7]} 18. Qb3+
{[%clk 0:01:09.2]} 18... Kh8 {[%clk 0:01:53.4]} 19. Nd2 {[%clk 0:01:06.4]} 19...
Bg5 {[%clk 0:01:37.5]} 20. Re4 {[%clk 0:00:54.1]} 20... Bxd2 {[%clk 0:01:28.1]}
21. Rxg4 {[%clk 0:00:54.1]} 21... Rxf2 {[%clk 0:01:00.5]} 22. Rxg7 {[%clk
0:00:34.6]} 22... Qxg7 {[%clk 0:00:59.4]} 23. Kxf2 {[%clk 0:00:34.3]} 23... Qg5
{[%clk 0:00:59.4]} 24. Be4 {[%clk 0:00:23.3]} 24... Rf8+ {[%clk 0:00:52.4]} 25.
Kg2 {[%clk 0:00:23]} 25... Qe3 {[%clk 0:00:45.5]} 26. Rf1 {[%clk 0:00:19.2]}
26... Qe2+ {[%clk 0:00:39.6]} 27. Kh3 {[%clk 0:00:13.4]} 27... Qxf1+ {[%clk
0:00:36.5]} 28. Kg4 {[%clk 0:00:12]} 28... h5+ {[%clk 0:00:33]} 29. Kh4 {[%clk
0:00:09.7]} 29... Qf6+ {[%clk 0:00:28.8]} 30. Kh3 {[%clk 0:00:07.5]} 30... Qg5
{[%clk 0:00:26.9]} 31. Qe6 {[%clk 0:00:05.4]} 31... Qg4+ {[%clk 0:00:24.1]} 32.
Qxg4 {[%clk 0:00:04.5]} 32... hxg4+ {[%clk 0:00:22.9]} 33. Kxg4 {[%clk
0:00:04.9]} 33... Ne7 {[%clk 0:00:20.2]} 34. Bxb7 {[%clk 0:00:04.3]} 34... Rg8+
{[%clk 0:00:17.2]} 35. Kf3 {[%clk 0:00:04.1]} 35... Bg5 {[%clk 0:00:14]} 36. b5
{[%clk 0:00:03.9]} 36... axb5 {[%clk 0:00:11.9]} 37. a5 {[%clk 0:00:04.2]} 37...
d5 {[%clk 0:00:08.9]} 38. a6 {[%clk 0:00:04.4]} 38... Nf5 {[%clk 0:00:08.5]} 39.
a7 {[%clk 0:00:03.6]} 39... Ne3 {[%clk 0:00:07.6]} 40. a8=Q {[%clk 0:00:03.5]}
40... Rxa8 {[%clk 0:00:07.4]} 41. Bxa8 {[%clk 0:00:03.8]} 41... Nd1 {[%clk
0:00:06.6]} 42. Ba3 {[%clk 0:00:03.4]} 42... Nxc3 {[%clk 0:00:05.2]} 43. Bc6
{[%clk 0:00:03]} 43... d4 {[%clk 0:00:04.1]} 44. h4 {[%clk 0:00:03]} 44... Bd2
{[%clk 0:00:02.4]} 45. g4 {[%clk 0:00:03.4]} 45... Kg7 {[%clk 0:00:01.8]} 46. g5
{[%clk 0:00:03.4]} 1-0

[Event "Late-Titled-Tuesday-Blitz-April-16-2024"]
[Site "Chess.com"]
[Date "2024.04.16"]
[Round "5"]
[White "Andrii_Prydun"]
[Black "Slovak_fighter2000"]
[Result "1-0"]
[WhiteElo "2368"]
[BlackElo "2520"]
[TimeControl "180+1"]
[EndTime "14:53:41 PDT"]
[Termination "Andrii_Prydun won on time"]

1. e4 {[%clk 0:02:48.3]} 1... c5 {[%clk 0:02:57.9]} 2. Nf3 {[%clk 0:02:46.2]}
2... d6 {[%clk 0:02:57.4]} 3. c3 {[%clk 0:02:40.8]} 3... Nf6 {[%clk 0:02:56.8]}
4. h3 {[%clk 0:02:39.1]} 4... Bd7 {[%clk 0:02:56]} 5. Qc2 {[%clk 0:02:33.6]}
5... Qc7 {[%clk 0:02:55.1]} 6. Bc4 {[%clk 0:02:32.6]} 6... e6 {[%clk 0:02:50.2]}
7. a4 {[%clk 0:02:31.3]} 7... Be7 {[%clk 0:02:45.8]} 8. O-O {[%clk 0:02:30]}
8... O-O {[%clk 0:02:37.6]} 9. d3 {[%clk 0:02:25.3]} 9... Nc6 {[%clk 0:02:35]}
10. Bf4 {[%clk 0:02:16.4]} 10... a6 {[%clk 0:02:25.3]} 11. Nbd2 {[%clk
0:02:13.9]} 11... Rab8 {[%clk 0:02:22.7]} 12. Rae1 {[%clk 0:01:47.4]} 12... b5
{[%clk 0:02:21.2]} 13. axb5 {[%clk 0:01:46.6]} 13... axb5 {[%clk 0:02:22.1]} 14.
Ba2 {[%clk 0:01:46.2]} 14... e5 {[%clk 0:02:16.7]} 15. Bb1 {[%clk 0:01:47.1]}
15... exf4 {[%clk 0:02:16.2]} 16. d4 {[%clk 0:01:45.4]} 16... g6 {[%clk
0:02:06.7]} 17. dxc5 {[%clk 0:01:39.7]} 17... dxc5 {[%clk 0:02:05.7]} 18. e5
{[%clk 0:01:38.6]} 18... Nd5 {[%clk 0:02:02.6]} 19. Ne4 {[%clk 0:01:34.4]} 19...
Bf5 {[%clk 0:01:54.2]} 20. Qd2 {[%clk 0:01:30]} 20... Rbd8 {[%clk 0:01:50.6]}
21. Qe2 {[%clk 0:01:29.2]} 21... Bxe4 {[%clk 0:01:43.8]} 22. Bxe4 {[%clk
0:01:27.1]} 22... c4 {[%clk 0:01:44.1]} 23. e6 {[%clk 0:01:07.6]} 23... f5
{[%clk 0:01:35]} 24. Bc2 {[%clk 0:01:03.2]} 24... Bf6 {[%clk 0:01:27.7]} 25. h4
{[%clk 0:00:10.6]} 25... Nce7 {[%clk 0:01:27]} 26. h5 {[%clk 0:00:07.7]} 26...
Kg7 {[%clk 0:01:27.4]} 27. Nd2 {[%clk 0:00:04.2]} 27... Rfe8 {[%clk 0:01:19.5]}
28. Ra1 {[%clk 0:00:03.6]} 28... Ra8 {[%clk 0:01:14.8]} 29. Rfe1 {[%clk
0:00:03.9]} 29... Qb7 {[%clk 0:01:11.5]} 30. Rad1 {[%clk 0:00:02.5]} 30... Red8
{[%clk 0:01:04.2]} 31. Rb1 {[%clk 0:00:02.3]} 31... Qb6 {[%clk 0:00:59.1]} 32.
Rbd1 {[%clk 0:00:02.2]} 32... Ra2 {[%clk 0:00:56.3]} 33. Rb1 {[%clk 0:00:01.7]}
33... Nxc3 {[%clk 0:00:52.6]} 34. bxc3 {[%clk 0:00:01.7]} 34... Rxc2 {[%clk
0:00:52.8]} 35. Nxc4 {[%clk 0:00:02.2]} 35... Rxe2 {[%clk 0:00:46.1]} 36. Nxb6
{[%clk 0:00:02.8]} 36... Rxe1+ {[%clk 0:00:46.4]} 37. Rxe1 {[%clk 0:00:03.4]}
37... Bxc3 {[%clk 0:00:45]} 38. Rb1 {[%clk 0:00:02.1]} 38... b4 {[%clk
0:00:45.1]} 39. Nd7 {[%clk 0:00:02.3]} 39... gxh5 {[%clk 0:00:41.4]} 40. Nc5
{[%clk 0:00:02.6]} 40... Kf6 {[%clk 0:00:40.2]} 41. Nb3 {[%clk 0:00:02.6]} 41...
Kxe6 {[%clk 0:00:39.9]} 42. Kf1 {[%clk 0:00:02.9]} 42... Kf6 {[%clk 0:00:40.3]}
43. f3 {[%clk 0:00:03.2]} 43... Nd5 {[%clk 0:00:39.1]} 44. Kf2 {[%clk
0:00:03.6]} 44... Ne3 {[%clk 0:00:39.3]} 45. Kg1 {[%clk 0:00:03.7]} 1-0

[Event "Late-Titled-Tuesday-Blitz-April-16-2024"]
[Site "Chess.com"]
[Date "2024.04.16"]
[Round "5"]
[White "zverr1"]
[Black "CarlosjPineror"]
[Result "1-0"]
[WhiteElo "2519"]
[BlackElo "2688"]
[TimeControl "180+1"]
[EndTime "14:53:44 PDT"]
[Termination "zverr1 won by resignation"]

1. e4 {[%clk 0:02:56.1]} 1... c5 {[%clk 0:03:00]} 2. Nf3 {[%clk 0:02:56]} 2...
e6 {[%clk 0:03:00.4]} 3. b3 {[%clk 0:02:55.5]} 3... b6 {[%clk 0:02:59.4]} 4. Bb2
{[%clk 0:02:55.2]} 4... Bb7 {[%clk 0:02:59.9]} 5. Qe2 {[%clk 0:02:55.8]} 5...
Nc6 {[%clk 0:02:58.5]} 6. g3 {[%clk 0:02:55.1]} 6... a6 {[%clk 0:02:58.6]} 7.
Bg2 {[%clk 0:02:55.1]} 7... Qc7 {[%clk 0:02:59.3]} 8. O-O {[%clk 0:02:54.9]}
8... d6 {[%clk 0:03:00]} 9. d4 {[%clk 0:02:53.8]} 9... cxd4 {[%clk 0:02:58.6]}
10. Nxd4 {[%clk 0:02:54.7]} 10... Nf6 {[%clk 0:02:58.6]} 11. c4 {[%clk
0:02:53.2]} 11... Be7 {[%clk 0:02:58.3]} 12. Nxc6 {[%clk 0:02:47.7]} 12... Qxc6
{[%clk 0:02:47.1]} 13. Nc3 {[%clk 0:02:46.7]} 13... O-O {[%clk 0:02:47.5]} 14.
Rfe1 {[%clk 0:02:45.8]} 14... Rac8 {[%clk 0:02:45.9]} 15. Nd5 {[%clk 0:02:35.6]}
15... Nxd5 {[%clk 0:02:05.2]} 16. exd5 {[%clk 0:02:11.5]} 16... Qc5 {[%clk
0:02:00.8]} 17. dxe6 {[%clk 0:01:53.3]} 17... Bxg2 {[%clk 0:02:01.7]} 18. Kxg2
{[%clk 0:01:30.4]} 18... d5 {[%clk 0:02:01.8]} 19. exf7+ {[%clk 0:00:39.3]}
19... Rxf7 {[%clk 0:01:56]} 20. Rad1 {[%clk 0:00:32.3]} 20... dxc4 {[%clk
0:01:51.3]} 21. bxc4 {[%clk 0:00:31.7]} 21... Qc6+ {[%clk 0:01:48.9]} 22. Kg1
{[%clk 0:00:24.5]} 22... Rcf8 {[%clk 0:01:06.8]} 23. Bd4 {[%clk 0:00:23.9]}
23... Bc5 {[%clk 0:01:03.7]} 24. Rf1 {[%clk 0:00:20.6]} 24... Bxd4 {[%clk
0:00:59.4]} 25. Rxd4 {[%clk 0:00:21.5]} 25... Qc5 {[%clk 0:01:00.2]} 26. Qe3
{[%clk 0:00:20]} 26... Re7 {[%clk 0:00:56.3]} 27. Re4 {[%clk 0:00:15.5]} 27...
Qxe3 {[%clk 0:00:55]} 28. Rxe3 {[%clk 0:00:14.9]} 28... Rxe3 {[%clk 0:00:54.7]}
29. fxe3 {[%clk 0:00:15.8]} 29... Rc8 {[%clk 0:00:54.6]} 30. Rc1 {[%clk
0:00:08.5]} 30... Kf7 {[%clk 0:00:53.9]} 31. Kf2 {[%clk 0:00:08.6]} 31... Ke6
{[%clk 0:00:54.8]} 32. Ke2 {[%clk 0:00:08.1]} 32... Ke5 {[%clk 0:00:55.5]} 33.
Kd3 {[%clk 0:00:08.8]} 33... Rd8+ {[%clk 0:00:56]} 34. Kc3 {[%clk 0:00:09.3]}
34... Rf8 {[%clk 0:00:56.7]} 35. Rc2 {[%clk 0:00:09.2]} 35... Rf3 {[%clk
0:00:56.8]} 36. Kd3 {[%clk 0:00:09.2]} 36... Rf1 {[%clk 0:00:57.4]} 37. c5
{[%clk 0:00:09.4]} 37... b5 {[%clk 0:00:52.1]} 38. c6 {[%clk 0:00:08.8]} 38...
Rf8 {[%clk 0:00:52.6]} 39. c7 {[%clk 0:00:09.4]} 39... Rc8 {[%clk 0:00:53.1]}
40. Rc6 {[%clk 0:00:06.9]} 40... Kd5 {[%clk 0:00:51.8]} 41. Rxa6 {[%clk
0:00:06]} 41... Rxc7 {[%clk 0:00:52.5]} 42. Ra8 {[%clk 0:00:03.5]} 42... h6
{[%clk 0:00:52.1]} 43. Rb8 {[%clk 0:00:03.6]} 43... Kc5 {[%clk 0:00:52.5]} 44.
a3 {[%clk 0:00:03.3]} 44... Ra7 {[%clk 0:00:51.9]} 45. Rc8+ {[%clk 0:00:04.1]}
45... Kb6 {[%clk 0:00:52.4]} 46. Rc3 {[%clk 0:00:04.7]} 46... Rd7+ {[%clk
0:00:51.2]} 47. Ke4 {[%clk 0:00:04.9]} 47... Re7+ {[%clk 0:00:52.1]} 48. Kf5
{[%clk 0:00:05.4]} 48... Rd7 {[%clk 0:00:50.9]} 49. e4 {[%clk 0:00:05.6]} 49...
Rd2 {[%clk 0:00:49.5]} 50. h4 {[%clk 0:00:06.3]} 50... h5 {[%clk 0:00:48.7]} 51.
e5 {[%clk 0:00:06.5]} 51... Rf2+ {[%clk 0:00:45.6]} 52. Ke6 {[%clk 0:00:06.8]}
52... Ka5 {[%clk 0:00:41.9]} 53. Kd7 {[%clk 0:00:06.7]} 53... b4 {[%clk
0:00:42.8]} 54. axb4+ {[%clk 0:00:06.6]} 54... Kxb4 {[%clk 0:00:43.7]} 55. Rc1
{[%clk 0:00:05.7]} 55... Rd2+ {[%clk 0:00:43.2]} 56. Kc7 {[%clk 0:00:05]} 56...
Re2 {[%clk 0:00:42.7]} 57. Kd6 {[%clk 0:00:05.2]} 57... Rd2+ {[%clk 0:00:43.2]}
58. Ke7 {[%clk 0:00:05.5]} 58... Rg2 {[%clk 0:00:43]} 59. e6 {[%clk 0:00:04.5]}
59... Rxg3 {[%clk 0:00:43.6]} 60. Re1 {[%clk 0:00:03.6]} 60... g5 {[%clk
0:00:43.3]} 61. hxg5 {[%clk 0:00:03.4]} 61... Rxg5 {[%clk 0:00:43.9]} 62. Kf6
{[%clk 0:00:03.6]} 62... Rg8 {[%clk 0:00:44.1]} 63. e7 {[%clk 0:00:04.2]} 63...
Re8 {[%clk 0:00:44.3]} 64. Kf7 {[%clk 0:00:04.9]} 1-0

[Event "Late-Titled-Tuesday-Blitz-April-16-2024"]
[Site "Chess.com"]
[Date "2024.04.16"]
[Round "5"]
[White "GiorgianBarbosa"]
[Black "manitodeplomo"]
[Result "1-0"]
[WhiteElo "2466"]
[BlackElo "2629"]
[TimeControl "180+1"]
[EndTime "14:53:49 PDT"]
[Termination "GiorgianBarbosa won on time"]

1. e4 {[%clk 0:03:00.9]} 1... Nf6 {[%clk 0:02:54.3]} 2. e5 {[%clk 0:02:59.7]}
2... Nd5 {[%clk 0:02:54.7]} 3. c4 {[%clk 0:03:00.4]} 3... Nb6 {[%clk 0:02:54.5]}
4. d4 {[%clk 0:03:01.3]} 4... d6 {[%clk 0:02:55.1]} 5. exd6 {[%clk 0:03:02.2]}
5... cxd6 {[%clk 0:02:56]} 6. Nc3 {[%clk 0:03:01.2]} 6... e5 {[%clk 0:02:56.2]}
7. dxe5 {[%clk 0:02:58.9]} 7... dxe5 {[%clk 0:02:57.1]} 8. Qxd8+ {[%clk
0:02:59.6]} 8... Kxd8 {[%clk 0:02:57.5]} 9. Be3 {[%clk 0:02:57]} 9... Be6 {[%clk
0:02:57]} 10. O-O-O+ {[%clk 0:02:56.5]} 10... N8d7 {[%clk 0:02:57.2]} 11. Nd5
{[%clk 0:02:51.6]} 11... Rc8 {[%clk 0:02:42.9]} 12. Nxb6 {[%clk 0:02:50.5]}
12... axb6 {[%clk 0:02:39.6]} 13. Bxb6+ {[%clk 0:02:24]} 13... Ke8 {[%clk
0:02:39.5]} 14. Be3 {[%clk 0:02:21.7]} 14... b5 {[%clk 0:02:06.1]} 15. Kb1
{[%clk 0:02:01.3]} 15... bxc4 {[%clk 0:02:02.3]} 16. Ne2 {[%clk 0:01:56.7]}
16... Bc5 {[%clk 0:02:01.3]} 17. Nc3 {[%clk 0:01:48.8]} 17... Bxe3 {[%clk
0:02:00.6]} 18. fxe3 {[%clk 0:01:49.7]} 18... Nf6 {[%clk 0:01:43.8]} 19. Be2
{[%clk 0:01:36.5]} 19... Ke7 {[%clk 0:01:42.7]} 20. Bf3 {[%clk 0:01:33.3]} 20...
Rhd8 {[%clk 0:01:27.3]} 21. Rxd8 {[%clk 0:01:28.6]} 21... Rxd8 {[%clk
0:01:27.1]} 22. Rd1 {[%clk 0:01:27.5]} 22... Rxd1+ {[%clk 0:01:24.8]} 23. Bxd1
{[%clk 0:01:23.8]} 23... Nd5 {[%clk 0:01:20.5]} 24. Nxd5+ {[%clk 0:01:20.5]}
24... Bxd5 {[%clk 0:01:21.4]} 25. g3 {[%clk 0:01:14.9]} 25... f5 {[%clk
0:01:16.5]} 26. Kc2 {[%clk 0:01:10.3]} 26... g5 {[%clk 0:01:16.2]} 27. Kc3
{[%clk 0:01:08.2]} 27... Kd6 {[%clk 0:01:12.6]} 28. Be2 {[%clk 0:01:01.6]} 28...
Kc5 {[%clk 0:01:07.6]} 29. a4 {[%clk 0:01:00.2]} 29... f4 {[%clk 0:01:04.9]} 30.
exf4 {[%clk 0:00:58]} 30... exf4 {[%clk 0:01:05.2]} 31. gxf4 {[%clk 0:00:58.9]}
31... gxf4 {[%clk 0:01:05.4]} 32. a5 {[%clk 0:00:57.9]} 32... f3 {[%clk
0:00:57.4]} 33. Bf1 {[%clk 0:00:56.7]} 33... f2 {[%clk 0:00:57.3]} 34. h4 {[%clk
0:00:54.7]} 34... h6 {[%clk 0:00:51.3]} 35. h5 {[%clk 0:00:50.7]} 35... Bf7
{[%clk 0:00:49.6]} 36. Be2 {[%clk 0:00:46.7]} 36... Bxh5 {[%clk 0:00:47.1]} 37.
Bxc4 {[%clk 0:00:46.7]} 37... Bf3 {[%clk 0:00:43.4]} 38. b4+ {[%clk 0:00:44.5]}
38... Kd6 {[%clk 0:00:43.1]} 39. Bf1 {[%clk 0:00:38.6]} 39... h5 {[%clk
0:00:36]} 40. Kd4 {[%clk 0:00:38]} 40... Bc6 {[%clk 0:00:08.3]} 41. Ke3 {[%clk
0:00:32.3]} 41... h4 {[%clk 0:00:07.8]} 42. Kxf2 {[%clk 0:00:32.7]} 42... Kd5
{[%clk 0:00:06.6]} 43. Ke3 {[%clk 0:00:29.2]} 43... Kd6 {[%clk 0:00:02.7]} 44.
Kf4 {[%clk 0:00:26.1]} 44... Bd7 {[%clk 0:00:01.9]} 45. Bg2 {[%clk 0:00:12.8]}
45... h3 {[%clk 0:00:01.4]} 46. Bh1 {[%clk 0:00:13.3]} 46... h2 {[%clk
0:00:01.6]} 47. Kg3 {[%clk 0:00:12.5]} 47... Ke5 {[%clk 0:00:02.1]} 48. a6
{[%clk 0:00:09.1]} 1-0